bitfinex-derivatives/quotes_SOLF0:USTF0_20250124
["timestamp","ask_amount","ask_price","bid_price","bid_amount"]
[1737689619942,0.02799975,250.92,250.86,0.02921643]
[1737689620242,0.02799975,250.92,250.9,3.9861]
[1737689621645,0.02799975,250.92,250.86,25.83695119]
[1737689621946,0.02799975,250.92,250.86,0.02921643]
[1737689624747,4.01389975,250.92,250.86,0.02921643]
[1737689625248,0.02799975,250.92,250.86,0.02921643]
[1737689625842,0.02799975,250.92,250.86,25.83695119]
[1737689626348,0.02799975,250.92,250.9,3.986]
[1737689626850,25.80773476,251.11,250.86,25.83695119]
[1737689627053,2.5879,251.05,250.86,25.80773476]
[1737689627845,2.5879,251.05,250.81,25.80773476]
[1737689628150,0.02542893,250.98,250.93,0.02859061]
[1737689628649,0.02542893,250.98,250.81,25.80773476]
[1737689628850,25.80773476,251.01,250.76,25.80773476]
[1737689629746,25.80773476,251.01,250.81,25.80773476]
[1737689629940,0.02696115,250.91,250.86,0.02701124]
[1737689631050,0.02696115,250.91,250.89,3.9863]
[1737689631551,6.115e-05,250.91,250.89,3.9863]
[1737689631743,2.5879,251.05,250.89,15.84684468]
[1737689631946,2.5879,251.05,251.01,3.9844]
[1737689632244,2.5879,251.05,250.89,15.84684468]
[1737689632448,1.3358,251.1,250.94,15.84684468]
[1737689632651,3.9827,251.13,250.94,15.84684468]
[1737689632849,1.3187,251.16,250.94,15.84684468]
[1737689633145,0.02783602,251.06,251.01,0.0259913]
[1737689634150,0.02783602,251.06,251.01,4.0102913]
[1737689635447,0.02783602,251.06,251.02,3.9842]
[1737689635655,0.02783602,251.06,251.01,0.0259913]
[1737689636052,0.02783602,251.06,251.03,3.984]
[1737689636256,0.02783602,251.06,251.01,0.0259913]
[1737689636852,0.02783602,251.06,250.89,15.84684468]
[1737689637055,15.84684468,251.12,250.89,15.84684468]
[1737689638152,0.0259695,251.03,250.98,0.025394]
[1737689638350,3.9828,251.12,251.01,3.9844]
[1737689638551,0.02975173,251.03,250.98,0.02729753]
[1737689638751,1.3376,251.15,250.89,15.84684468]
[1737689638952,0.02586838,251.03,250.98,0.02603865]
[1737689639146,1.3376,251.15,250.89,15.84684468]
[1737689639352,0.02527537,251.03,250.98,0.02667065]
[1737689639551,1.3376,251.15,250.94,15.84684468]
[1737689639747,0.02835223,251.03,250.98,0.02582856]
[1737689640044,1.3376,251.15,250.94,15.84684468]
[1737689640256,0.02849496,251.03,251.02,3.9843]
[1737689640451,3.9825,251.14,250.94,15.84684468]
[1737689640756,0.02715132,251.05,251.0,0.02593247]
[1737689641254,0.02715132,251.05,251.04,3.9838]
[1737689641549,0.02715132,251.05,251.0,0.02593247]
[1737689642354,3.984,251.04,251.0,0.02593247]
[1737689642553,0.02715132,251.05,251.0,0.02593247]
[1737689642852,0.02715132,251.05,251.02,3.9842]
[1737689644754,0.02715132,251.05,251.03,3.9841]
[1737689644952,1.3376,251.15,251.0,0.02593247]
[1737689645257,1.3376,251.15,251.01,15.84684468]
[1737689646150,9.398e-05,251.11,251.05,15.84684468]
[1737689646355,1.2485,251.23,251.05,15.87635791]
[1737689646547,2.6502,251.34,251.16,15.84684468]
[1737689646748,2.6502,251.34,251.21,15.84684468]
[1737689646954,6.6295,251.34,251.24,3.9808]
[1737689647151,1.3359,251.34,251.21,15.84684468]
[1737689647352,1.2485,251.38,251.26,15.87505016]
[1737689647547,1.9e-06,251.32,251.31,3.9797]
[1737689647746,1.9e-06,251.32,251.27,15.84684468]
[1737689648054,1.9e-06,251.32,251.26,0.02820548]
[1737689648456,1.9e-06,251.32,251.12,15.84684468]
[1737689648755,1.3143,251.34,251.12,15.84684468]
[1737689649249,3.9801,251.29,251.12,15.84684468]
[1737689649454,1.2556,251.28,251.12,15.84684468]
[1737689649657,0.02629728,251.23,251.18,0.02770765]
[1737689649852,0.02629728,251.23,251.07,15.84684468]
[1737689650052,1.2556,251.28,251.07,15.84684468]
[1737689650257,1.2556,251.28,251.19,3.9815]
[1737689650556,1.3143,251.34,251.17,15.84684468]
[1737689650757,1.3143,251.34,251.22,15.84684468]
[1737689651052,0.02580103,251.31,251.27,15.84684468]
[1737689651249,19.34903117,251.5,251.27,15.84684468]
[1737689651250,15.84684468,251.5,251.27,15.84684468]
[1737689651451,1.2556,251.49,251.37,3.9787]
[1737689652054,1.2556,251.49,251.32,15.84684468]
[1737689652459,0.02890808,251.43,251.38,0.02560338]
[1737689652960,5.40181829,251.6,251.38,0.02560338]
[1737689653157,1.2894,251.59,251.37,15.84684468]
[1737689653455,3.9758,251.56,251.37,15.84684468]
[1737689653648,25.66984731,251.52,251.3,1.4863]
[1737689654055,0.03001503,251.44,251.38,0.02934457]
[1737689654358,0.03001503,251.44,251.4,3.9782]
[1737689654559,0.00297162,251.44,251.4,3.9782]
[1737689654760,0.00297162,251.44,251.38,25.69919188]
[1737689655059,0.00297162,251.44,251.38,29.67779188]
[1737689655354,0.00297162,251.44,251.38,25.69919188]
[1737689655752,1.3357,251.58,251.43,25.66984731]
[1737689655952,1.3357,251.58,251.46,3.9773]
[1737689656158,4.15129977,251.86,251.43,25.66984731]
[1737689656358,25.66984731,251.73,251.48,25.66984731]
[1737689656557,3.9742,251.66,251.48,25.66984731]
[1737689656759,25.66984731,251.67,251.44,0.5875]
[1737689656960,0.0299839,251.6,251.54,0.02563138]
[1737689658767,0.0299839,251.6,251.57,3.9755]
[1737689658954,0.0299839,251.6,251.54,0.02563138]
[1737689659859,3.878,251.77,251.56,25.66984731]
[1737689660058,2.5934,251.77,251.56,25.66984731]
[1737689660253,25.66984731,251.76,251.52,0.5875]
[1737689660956,0.02520524,251.67,251.61,0.02797176]
[1737689661353,3.9743,251.66,251.61,0.02797176]
[1737689661557,0.02520524,251.67,251.61,0.02797176]
[1737689661860,3.9747,251.63,251.61,0.02797176]
[1737689662262,5.40181829,252.0,251.62,130.81969462]
[1737689662559,13.60727316,252.01,251.99,25.66984731]
[1737689662755,108.76165456,252.07,251.99,25.66984731]
[1737689662952,108.76165456,252.07,251.94,25.66984731]
[1737689663163,108.76165456,252.07,252.06,25.66984731]
[1737689663462,1.2578,252.25,252.06,51.33969462]
[1737689663463,21.58955616,252.14,252.06,51.33969462]
[1737689663663,21.58955616,252.14,252.13,25.66984731]
[1737689663853,7.15565616,252.14,252.13,25.66984731]
[1737689664054,19.78117685,252.16,252.13,51.33969462]
[1737689664259,19.78117685,252.16,252.14,5.12]
[1737689664457,19.78117685,252.16,252.13,25.66984731]
[1737689664758,19.78117685,252.16,252.12,0.02913785]
[1737689665563,0.02960837,252.16,252.15,17.09472804]
[1737689665765,0.02960837,252.16,252.15,6.97832804]
[1737689666061,3.9668,252.13,252.11,110.48177854]
[1737689666267,3.9668,252.13,252.11,102.00797854]
[1737689666469,25.66984731,252.12,252.07,21.36841005]
[1737689666667,3.9675,252.08,252.07,21.36841005]
[1737689667166,3.9675,252.08,252.07,1.005e-05]
[1737689667566,3.9675,252.08,252.05,0.02622788]
[1737689667567,0.02874529,252.1,252.05,3.793e-05]
[1737689667768,25.66984731,252.07,251.82,3.799]
[1737689667965,25.66984731,252.02,251.82,3.799]
[1737689668162,3.9686,252.02,251.82,3.799]
[1737689668360,25.66984731,252.07,251.86,25.66984731]
[1737689668762,3.9686,252.02,251.86,25.66984731]
[1737689669067,0.02787211,251.99,251.94,0.03049986]
[1737689670573,3.9696,251.96,251.94,0.03049986]
[1737689671164,3.99697211,251.99,251.94,0.03049986]
[1737689672274,0.02787211,251.99,251.94,0.03049986]
[1737689672476,3.9692,251.98,251.94,0.03049986]
[1737689672881,3.9692,251.98,251.81,16.20467103]
[1737689674176,0.02678425,251.92,251.87,0.02852383]
[1737689674773,3.9707,251.89,251.87,0.02852383]
[1737689675178,25.66984731,251.91,251.68,25.66984731]
[1737689675777,3.9718,251.82,251.68,25.66984731]
[1737689676279,25.66984731,251.91,251.68,25.66984731]
[1737689676476,0.02704342,251.78,251.72,0.02679467]
[1737689676874,0.02704342,251.78,251.63,25.66984731]
[1737689676875,25.66984731,251.86,251.63,25.66984731]
[1737689677073,0.02654904,251.78,251.72,0.02518215]
[1737689677482,25.66984731,251.91,251.68,25.66984731]
[1737689677880,25.66984731,251.91,251.62,25.66984731]
[1737689678082,25.66984731,251.91,251.62,28.24594731]
[1737689678680,0.02766796,251.79,251.74,0.02528426]
[1737689678879,0.02766796,251.79,251.67,25.66984731]
[1737689679087,25.66984731,251.91,251.67,25.66984731]
[1737689679287,25.66984731,251.91,251.68,0.02645594]
[1737689679587,25.66984731,251.91,251.67,25.66984731]
[1737689679984,25.66984731,251.94,251.62,28.24594731]
[1737689680488,0.02921047,251.81,251.75,0.02536351]
[1737689680690,25.66984731,251.89,251.62,28.24594731]
[1737689680886,3.972,251.8,251.75,0.02750646]
[1737689682585,0.02816731,251.81,251.75,0.02750646]
[1737689683190,4.00006731,251.81,251.75,0.02750646]
[1737689684289,0.02816731,251.81,251.75,0.02750646]
[1737689684681,3.9725,251.77,251.75,0.02750646]
[1737689685793,3.9725,251.77,251.75,0.00244909]
[1737689686488,25.66984731,251.79,251.55,25.66984731]
[1737689686791,25.66984731,251.81,251.53,2.5928]
[1737689687387,14.5717,251.83,251.53,2.5928]
[1737689687388,25.66984731,251.75,251.53,2.5928]
[1737689687589,0.02769108,251.67,251.61,0.02928079]
[1737689687784,3.9744,251.65,251.61,0.02928079]
[1737689688086,0.02769108,251.67,251.61,0.02928079]
[1737689688391,3.9747,251.63,251.61,0.02928079]
[1737689688594,0.02769108,251.67,251.61,0.02928079]
[1737689689787,5.02,251.88,251.61,0.02928079]
[1737689689788,25.66984731,251.8,251.61,0.02928079]
[1737689689989,25.66984731,251.85,251.65,25.66984731]
[1737689690185,1.2497,251.89,251.65,25.66984731]
[1737689690393,25.66984731,251.9,251.65,25.66984731]
[1737689690688,3.9712,251.85,251.75,3.9727]
[1737689690892,3.9712,251.85,251.65,25.66984731]
[1737689690893,25.66984731,251.9,251.65,25.66984731]
[1737689691094,0.02596764,251.83,251.77,0.03004845]
[1737689691485,3.9717,251.82,251.77,0.03004845]
[1737689691690,0.02596764,251.83,251.77,0.03004845]
[1737689691990,3.9722,251.79,251.77,0.03004845]
[1737689693589,0.02596764,251.83,251.77,0.03004845]
[1737689694191,25.66984731,251.94,251.77,0.03004845]
[1737689694392,25.66984731,251.94,251.74,25.66984731]
[1737689694692,25.66984731,251.94,251.77,3.9724]
[1737689694898,25.66984731,251.94,251.77,3.93206065]
[1737689695191,25.66984731,251.89,251.7,1.3393]
[1737689695996,3.9722,251.79,251.7,5.3127]
[1737689696194,25.66984731,251.89,251.7,1.3393]
[1737689696592,0.03048377,251.82,251.77,0.03008802]
[1737689698198,0.03048377,251.82,251.77,4.00238802]
[1737689698601,3.9705,251.9,251.77,0.03008802]
[1737689698799,3.9705,251.9,251.78,2.5232]
[1737689699191,3.9706,251.89,251.8,3.9719]
[1737689699397,25.66984731,251.94,251.78,2.5232]
[1737689699593,25.66984731,251.99,251.84,3.9713]
[1737689699798,0.03058154,251.89,251.83,0.02727171]
[1737689700094,25.66984731,251.94,251.78,2.5232]
[1737689700401,0.02924336,251.89,251.83,0.02627944]
[1737689700799,3.9712,251.85,251.83,0.02627944]
[1737689701305,25.69909067,251.89,251.7,1.3393]
[1737689701801,25.66984731,251.89,251.7,1.3393]
[1737689702001,1.269,251.88,251.7,1.3393]
[1737689702197,0.02559897,251.82,251.81,3.9718]
[1737689702496,25.66984731,251.99,251.78,2.6858]
[1737689702798,25.66984731,251.94,251.78,2.6858]
[1737689703001,25.66984731,251.94,251.71,1.3295]
[1737689703199,3.9708,251.88,251.71,1.3295]
[1737689703500,0.02928232,251.82,251.77,0.02616581]
[1737689707297,3.9721,251.79,251.77,0.02616581]
[1737689707498,0.02928232,251.82,251.64,25.66984731]
[1737689707695,3.973,251.74,251.64,25.66984731]
[1737689707902,2.5778,251.87,251.64,25.66984731]
[1737689708598,25.66984731,251.84,251.73,0.029906]
[1737689708804,0.02908716,251.78,251.62,1.2888]
[1737689709003,3.9739,251.68,251.62,1.2888]
[1737689709206,25.66984731,251.79,251.54,25.66984731]
[1737689709604,25.66984731,251.74,251.53,2.6444]
[1737689709804,2.5883,251.73,251.53,2.6444]
[1737689710005,0.03007966,251.66,251.61,0.02561574]
[1737689710609,0.03007966,251.66,251.43,1.2613]
[1737689710912,3.9758,251.56,251.44,1.3466]
[1737689711104,37.64984731,251.69,251.44,1.3466]
[1737689711305,25.66984731,251.64,251.44,1.3466]
[1737689711508,25.66984731,251.64,251.44,5.3242]
[1737689711708,25.66984731,251.59,251.4,1.3153]
[1737689711908,0.02834297,251.57,251.51,0.03015243]
[1737689712104,25.66984731,251.54,251.32,25.66984731]
[1737689713216,25.66984731,251.54,251.4,0.02539575]
[1737689713413,0.03004538,251.46,251.4,0.02539575]
[1737689713616,1.3089,251.58,251.37,25.66984731]
[1737689714016,0.02640618,251.5,251.45,0.02694633]
[1737689714216,3.978,251.42,251.3,2.6079]
[1737689714414,25.66984731,251.49,251.3,2.6079]
[1737689715115,25.66984731,251.44,251.27,3.45061199]
[1737689715315,0.02862506,251.42,251.37,0.027315]
[1737689715514,0.02862506,251.42,251.27,3.45061199]
[1737689715712,0.02862506,251.42,251.17,1.258]
[1737689715713,25.66984731,251.38,251.17,1.258]
[1737689716213,25.66984731,251.25,251.08,1.2947]
[1737689716416,25.66984731,251.25,250.93,1.3717]
[1737689716616,3.9821,251.17,251.03,3.9841]
[1737689716815,3.9821,251.17,251.14,0.02740739]
[1737689717018,25.66984731,251.2,251.0,25.66984731]
[1737689717218,0.02782293,251.18,251.13,0.02945307]
[1737689717719,25.66984731,251.25,251.0,25.66984731]
[1737689717919,0.02572911,251.18,251.13,0.02868609]
[1737689718311,25.66984731,251.3,251.2,3.9813]
[1737689718516,6.515e-05,251.18,251.13,0.02562631]
[1737689718719,26.94844731,251.35,251.11,1.3717]
[1737689719318,25.66984731,251.3,251.11,1.3717]
[1737689719720,5.717e-05,251.23,251.18,0.02730781]
[1737689719920,5.717e-05,251.23,251.22,3.9811]
[1737689720213,3.9775,251.45,251.19,26.93774731]
[1737689720518,25.66984731,251.47,251.24,25.66984731]
[1737689720715,25.66984731,251.47,251.25,1.3189]
[1737689720920,0.02964394,251.38,251.33,0.02702461]
[1737689722222,0.02964394,251.38,251.34,3.9791]
[1737689722725,0.02964394,251.38,251.33,0.02702461]
[1737689723523,25.66984731,251.55,251.33,0.02702461]
[1737689723919,25.66984731,251.55,251.29,25.66984731]
[1737689724120,3.7444,251.6,251.29,25.66984731]
[1737689724121,25.66984731,251.5,251.29,25.66984731]
[1737689724320,25.66984731,251.5,251.25,1.3189]
[1737689724722,0.0273208,251.4,251.35,0.03050347]
[1737689725419,3.9785,251.39,251.35,0.03050347]
[1737689725625,0.0273208,251.4,251.35,0.03050347]
[1737689726925,25.69716811,251.4,251.09,25.66984731]
[1737689727121,25.66984731,251.33,251.09,25.66984731]
[1737689727824,37.64984731,251.42,251.06,3.9898]
[1737689727825,25.66984731,251.28,251.06,3.9898]
[1737689728026,25.66984731,251.28,251.18,0.02728129]
[1737689728027,3.9812,251.22,251.18,0.02728129]
[1737689728222,0.02772388,251.24,251.18,0.02728129]
[1737689729019,4.00862388,251.24,251.18,0.02728129]
[1737689729224,0.02772388,251.24,251.18,0.02728129]
[1737689729729,4.00862388,251.24,251.18,0.02728129]
[1737689729929,0.02772388,251.24,251.18,0.02728129]
[1737689730129,2.388e-05,251.24,251.18,0.02728129]
[1737689730327,2.388e-05,251.24,251.22,3.9811]
[1737689732936,2.388e-05,251.24,251.18,0.02728129]
[1737689734229,3.981,251.23,251.18,0.02728129]
[1737689734433,2.388e-05,251.24,251.18,0.02728129]
[1737689735834,2.388e-05,251.24,251.2,3.9814]
[1737689736037,2.388e-05,251.24,251.18,0.02728129]
[1737689736629,2.388e-05,251.24,251.06,1.2412]
[1737689736833,25.66984731,251.32,251.08,25.66984731]
[1737689737039,25.66984731,251.37,251.13,25.66984731]
[1737689737329,2.4395,251.41,251.18,25.66984731]
[1737689737932,0.02646862,251.32,251.27,0.02846047]
[1737689738324,3.9801,251.29,251.27,0.02846047]
[1737689738524,0.02646862,251.32,251.08,25.66984731]
[1737689738525,25.69631593,251.32,251.08,25.66984731]
[1737689738728,25.66984731,251.32,251.08,25.66984731]
[1737689738923,25.66984731,251.27,251.08,25.66984731]
[1737689739135,25.71637536,251.27,251.06,1.2412]
[1737689739629,0.02547726,251.19,251.11,3.9827]
[1737689739933,0.02547726,251.19,251.14,0.02748444]
[1737689740234,3.9822,251.16,251.14,0.02748444]
[1737689741126,0.02547726,251.19,251.14,0.02748444]
[1737689741934,3.9821,251.16,251.14,0.02748444]
[1737689742134,25.72672122,251.18,250.92,25.72672122]
[1737689742331,3.983,251.11,251.01,3.9844]
[1737689742635,25.72672122,251.18,250.92,25.72672122]
[1737689743335,0.02878278,251.08,251.02,0.02885935]
[1737689743739,0.02878278,251.08,251.02,0.03014322]
[1737689745533,25.72672122,251.23,251.02,25.75686444]
[1737689745735,29.70772122,251.23,251.14,3.9823]
[1737689746036,5.39750098,251.21,251.02,25.72672122]
[1737689746231,5.39750098,251.21,251.07,3.9834]
[1737689746430,5.39750098,251.21,251.02,25.72672122]
[1737689746737,0.02891606,251.14,251.13,3.9825]
[1737689746930,5.39750098,251.21,251.02,25.72672122]
[1737689747130,0.02516011,251.16,251.02,25.72672122]
[1737689747335,0.02516011,251.16,251.09,0.0278741]
[1737689748834,25.72672122,251.12,250.98,2.6505]
[1737689749143,0.02516011,251.16,250.91,2.6568]
[1737689749144,25.72672122,251.07,250.91,2.6568]
[1737689749941,0.02616857,251.02,250.96,0.02577479]
[1737689750736,3.9848,250.99,250.96,0.02577479]
[1737689750942,0.02616857,251.02,250.96,0.02577479]
[1737689752635,2.3707,251.15,250.96,0.02577479]
[1737689752840,2.3707,251.15,250.95,25.72672122]
[1737689753843,0.03043727,251.08,251.02,0.02603316]
[1737689755344,3.9841,251.04,251.02,0.02603316]
[1737689757644,3.9851,250.97,250.92,1.2805]
[1737689757844,25.72672122,251.06,250.92,1.2805]
[1737689758044,25.72672122,251.06,250.78,1.2775]
[1737689758446,2.3648,251.09,250.88,25.72672122]
[1737689758643,5.39750098,251.15,250.93,25.72672122]
[1737689758845,3.9831,251.1,251.02,3.9842]
[1737689759247,3.984,251.04,250.96,3.9851]
[1737689759548,25.72672122,251.11,250.8,7.9754]
[1737689759549,25.72672122,251.06,250.83,25.72672122]
[1737689759747,3.9849,250.99,250.91,3.9859]
[1737689760045,0.02665859,250.97,250.92,0.02807505]
[1737689760246,3.9831,251.1,251.01,3.9844]
[1737689760441,5.39750098,251.12,250.93,25.72672122]
[1737689760846,5.39750098,251.12,250.98,25.72672122]
[1737689761549,6.125e-05,251.08,251.02,0.02831205]
[1737689761748,6.223e-05,251.16,251.03,25.72672122]
[1737689762146,6.223e-05,251.16,251.15,3.9822]
[1737689762849,10.07927854,251.18,251.17,3.9819]
[1737689763047,56.0533599,251.2,251.13,25.75375408]
[1737689763246,52.7161599,251.2,251.13,25.72672122]
[1737689763548,52.7161599,251.2,251.03,25.72672122]
[1737689763549,106.25685148,251.22,251.18,25.72672122]
[1737689763847,3.9774,251.46,251.21,3.9813]
[1737689764042,43.91387856,251.44,251.28,25.72672122]
[1737689764247,0.02771235,251.36,251.31,0.02669249]
[1737689765552,3.9791,251.35,251.31,0.02669249]
[1737689765751,0.02771235,251.36,251.31,0.02669249]
[1737689765951,0.02771235,251.36,251.32,25.72672122]
[1737689766252,0.02771235,251.36,251.33,3.9793]
[1737689766854,0.02771235,251.36,251.32,25.72672122]
[1737689767856,1.235e-05,251.36,251.32,25.72672122]
[1737689768154,25.72672122,251.6,251.32,25.72672122]
[1737689768349,2.6153,251.59,251.32,25.72672122]
[1737689768555,25.72672122,251.55,251.29,30.74672122]
[1737689768754,25.72672122,251.5,251.29,30.74672122]
[1737689768958,1.3244,251.49,251.29,30.74672122]
[1737689769157,0.02943237,251.42,251.37,0.02734383]
[1737689769354,3.9785,251.39,251.37,0.02734383]
[1737689771058,3.9782,251.41,251.37,0.02734383]
[1737689771258,0.02943237,251.42,251.37,0.02734383]
[1737689772864,3.9768,251.5,251.37,0.02734383]
[1737689773062,1.2421,251.58,251.35,25.72672122]
[1737689773458,1.2421,251.58,251.4,25.72672122]
[1737689773860,25.72672122,251.65,251.4,25.72672122]
[1737689774062,0.02581864,251.52,251.46,0.02705032]
[1737689776563,2.6851,251.75,251.5,25.72672122]
[1737689776862,1.2926,251.79,251.6,25.72672122]
[1737689777262,3.973,251.74,251.6,29.70172122]
[1737689777459,1.2926,251.79,251.6,25.72672122]
[1737689777868,0.02721494,251.72,251.67,0.02778131]
[1737689778564,0.02721494,251.72,251.7,25.72672122]
[1737689779768,0.02721494,251.72,251.7,29.70012122]
[1737689780471,1.494e-05,251.72,251.7,29.70012122]
[1737689780764,25.72672122,251.96,251.7,25.72672122]
[1737689780970,2.592,251.95,251.68,25.72672122]
[1737689781170,3.9709,251.87,251.68,29.70052122]
[1737689781471,25.72672122,251.91,251.68,25.72672122]
[1737689781770,3.9714,251.84,251.68,25.72672122]
[1737689781965,0.02854348,251.82,251.77,0.02762322]
[1737689782169,0.00854348,251.82,251.77,0.02762322]
[1737689782371,3.9722,251.79,251.77,0.02762322]
[1737689782764,0.00854348,251.82,251.59,5.0]
[1737689782971,1.33268532,251.78,251.59,5.0]
[1737689783172,1.2613,251.77,251.59,5.0]
[1737689783372,3.9735,251.71,251.59,8.9752]
[1737689783771,1.2613,251.77,251.59,5.0]
[1737689783974,1.33268532,251.78,251.65,25.72672122]
[1737689784173,0.02553713,251.68,251.65,25.72672122]
[1737689784370,1.33268532,251.78,251.65,25.72672122]
[1737689784371,3.9728,251.75,251.65,25.72672122]
[1737689784673,3.9728,251.75,251.6,25.72672122]
[1737689784869,1.33268532,251.78,251.65,25.72672122]
[1737689785074,25.72672122,251.9,251.7,25.72672122]
[1737689785369,1.3617,251.92,251.7,25.72672122]
[1737689785568,1.3617,251.92,251.77,0.02532678]
[1737689786373,29.21854334,252.33,251.87,25.72672122]
[1737689786674,29.21854334,252.33,251.82,25.72672122]
[1737689786675,1.3643,252.3,252.04,25.72672122]
[1737689786874,1.3643,252.3,251.94,25.72672122]
[1737689786875,1.3643,252.3,252.09,25.72672122]
[1737689787067,1.3643,252.3,252.14,0.02862086]
[1737689787269,1.3643,252.3,252.14,25.75534208]
[1737689787566,1.3643,252.3,252.14,25.72672122]
[1737689787771,1.3643,252.3,252.19,0.0289648]
[1737689788370,1.3643,252.3,252.07,25.72672122]
[1737689788874,0.0288749,252.27,252.07,25.72672122]
[1737689789074,1.3643,252.3,252.07,25.72672122]
[1737689789374,3.9652,252.24,252.07,25.72672122]
[1737689789666,1.3643,252.3,252.16,0.02573479]
[1737689789875,0.02580005,252.21,252.16,0.02573479]
[1737689790075,0.02580005,252.21,252.07,25.72672122]
[1737689790274,0.02580005,252.21,252.01,25.72672122]
[1737689790665,3.9662,252.17,252.01,25.72672122]
[1737689790874,25.72672122,252.2,251.94,25.72672122]
[1737689791474,0.03006118,252.1,252.04,0.02606533]
[1737689791771,0.03006118,252.1,252.05,25.72672122]
[1737689792075,1.2807,252.29,252.05,25.72672122]
[1737689792570,0.02833637,252.1,252.05,25.72672122]
[1737689792768,1.2807,252.29,252.14,0.0270878]
[1737689793169,1.3643,252.3,252.18,25.72672122]
[1737689793572,1.3643,252.3,252.13,25.72672122]
[1737689793777,5.3284,252.3,252.18,25.72672122]
[1737689793976,0.02894704,252.24,252.19,0.02797482]
[1737689794981,1.2891,252.45,252.23,25.72672122]
[1737689795379,1.3663,252.44,252.23,25.72672122]
[1737689796175,1.3663,252.44,252.31,8.717e-05]
[1737689796373,3.9638,252.32,252.31,8.717e-05]
[1737689796574,0.02910525,252.36,252.18,25.72672122]
[1737689796880,25.72672122,252.38,252.13,25.72672122]
[1737689797279,25.72672122,252.33,252.13,25.72672122]
[1737689797485,3.9652,252.23,252.13,25.72672122]
[1737689797782,25.72672122,252.38,252.2,0.02520087]
[1737689797984,3.9634,252.35,252.2,0.02520087]
[1737689798282,2.12e-05,252.21,252.18,25.72672122]
[1737689798488,3.9637,252.33,252.2,3.9657]
[1737689798779,1.3663,252.44,252.25,25.72672122]
[1737689799282,25.46794115,252.51,252.26,25.46794115]
[1737689799483,25.46794115,252.51,252.32,0.02721917]
[1737689799683,25.46794115,252.56,252.32,0.02721917]
[1737689799875,25.46794115,252.56,252.31,25.46794115]
[1737689800277,25.46794115,252.56,252.41,0.02642632]
[1737689800473,3.7851,252.58,252.41,0.02642632]
[1737689800474,3.9613,252.48,252.41,0.02642632]
[1737689800684,3.7851,252.58,252.41,0.02642632]
[1737689800981,3.7851,252.58,252.42,3.9621]
[1737689801185,3.7851,252.58,252.47,0.02810857]
[1737689801582,1.2506,252.58,252.47,0.02810857]
[1737689802088,3.9577,252.71,252.56,29.41989127]
[1737689802284,2.5694,252.81,252.56,25.45999127]
[1737689802681,2.5694,252.81,252.61,25.45999127]
[1737689802979,2.5694,252.81,252.46,25.45999127]
[1737689802980,25.45999127,252.8,252.66,0.02643106]
[1737689803179,25.45999127,252.75,252.66,0.02643106]
[1737689803578,3.958,252.7,252.66,0.02643106]
[1737689803781,25.45999127,252.7,252.46,25.45999127]
[1737689803981,25.45999127,252.65,252.41,25.45999127]
[1737689804183,25.45999127,252.6,252.36,1.3333]
[1737689804788,25.45999127,252.54,252.28,5.38]
[1737689804986,25.45999127,252.54,252.3,25.45999127]
[1737689805187,0.02503749,252.51,252.45,0.02868634]
[1737689805486,25.45999127,252.59,252.45,0.02868634]
[1737689805683,25.45999127,252.54,252.35,25.45999127]
[1737689805884,25.45999127,252.49,252.29,25.45999127]
[1737689806081,25.45999127,252.49,252.21,1.3121]
[1737689806082,2.5974,252.48,252.24,25.45999127]
[1737689806279,25.45999127,252.44,252.24,25.45999127]
[1737689806481,25.45999127,252.44,252.36,0.02986252]
[1737689806687,25.45999127,252.44,252.19,25.45999127]
[1737689806888,0.02507779,252.37,252.19,25.45999127]
[1737689807085,0.02507779,252.37,252.14,25.45999127]
[1737689807392,3.9649,252.25,252.14,25.45999127]
[1737689807587,25.45999127,252.39,252.14,25.45999127]
[1737689807783,25.45999127,252.33,252.08,1.3121]
[1737689807981,0.02529487,252.22,252.17,25.48544165]
[1737689808590,0.02529487,252.22,252.2,3.9656]
[1737689808790,1.2641,252.45,252.17,25.48544165]
[1737689808988,1.3456,252.44,252.24,25.45999127]
[1737689809192,3.9622,252.42,252.27,3.9645]
[1737689809392,1.3456,252.44,252.27,3.9645]
[1737689809692,1.3456,252.44,252.24,25.45999127]
[1737689809892,1.3456,252.44,252.2,25.45999127]
[1737689810094,0.02964982,252.38,252.33,0.0289853]
[1737689810285,0.02964982,252.38,252.2,25.45999127]
[1737689810690,1.3456,252.44,252.2,25.45999127]
[1737689811092,3.9636,252.34,252.2,25.45999127]
[1737689811296,1.3456,252.44,252.2,25.45999127]
[1737689811594,0.02814309,252.3,252.24,0.0278392]
[1737689811995,1.3456,252.44,252.2,25.45999127]
[1737689812398,0.02689043,252.3,252.28,3.9643]
[1737689812791,1.3456,252.44,252.2,25.45999127]
[1737689812994,1.3456,252.44,252.26,0.02600954]